bitfinex/quotes_BTCUSD_20241123
["timestamp","ask_amount","ask_price","bid_price","bid_amount"]
[1732363755788,0.0095,98254.0,98244.0,0.05063631]
[1732363756006,0.0095,98254.0,98245.0,0.23699455]
[1732363756666,0.0095,98254.0,98246.0,0.2007411]
[1732363759479,0.0095,98254.0,98246.0,0.0507411]
[1732363759960,0.0095,98254.0,98246.0,0.2007411]
[1732363760184,0.0095,98254.0,98248.0,0.05096444]
[1732363760822,0.0095,98254.0,98249.0,0.00455249]
[1732363762098,0.0095,98254.0,98250.0,0.05084926]
[1732363762608,0.0095,98254.0,98251.0,0.00455203]
[1732363762859,0.0095,98254.0,98250.0,0.05084926]
[1732363763101,0.0095,98254.0,98251.0,0.02245589]
[1732363763363,0.0095,98254.0,98251.0,0.02700792]
[1732363764266,0.0095,98254.0,98252.0,0.05035198]
[1732363764772,0.0095,98254.0,98253.0,0.05502978]
[1732363765034,0.0795,98262.0,98253.0,0.05502978]
[1732363765275,1.0987899,98262.0,98254.0,0.02050298]
[1732363765476,1.0784789,98262.0,98255.0,0.05090005]
[1732363765684,1.0784789,98262.0,98251.0,0.15]
[1732363765685,1.07497269,98262.0,98257.0,0.05067122]
[1732363765895,1.07070125,98262.0,98257.0,0.05067122]
[1732363766565,1.06377385,98262.0,98258.0,0.05081183]
[1732363767029,1.06377385,98262.0,98251.0,0.05038402]
[1732363767250,1.05950241,98262.0,98251.0,0.05038402]
[1732363767467,7.183e-05,98265.0,98253.0,0.05082703]
[1732363767927,1.01936173,98265.0,98253.0,0.05082703]
[1732363768166,0.0489,98268.0,98252.0,0.05041967]
[1732363768443,0.68963632,98267.0,98252.0,0.10983441]
[1732363768656,1.68861522,98267.0,98254.0,0.05015592]
[1732363768917,1.68861522,98267.0,98255.0,0.03198373]
[1732363769153,1.66830422,98267.0,98256.0,0.05069366]
[1732363769879,1.62768222,98267.0,98256.0,0.05069366]
[1732363770553,1.70478222,98267.0,98252.0,0.05041967]
[1732363771219,1.70478222,98267.0,98253.0,0.0464]
[1732363771444,1.70478222,98267.0,98254.0,0.05015592]
[1732363772596,1.66416022,98267.0,98254.0,0.05015592]
[1732363772823,1.64384922,98267.0,98255.0,0.15]
[1732363773046,1.64384922,98267.0,98255.0,0.15559967]
[1732363773576,1.46519422,98267.0,98256.0,0.05069366]
[1732363773810,1.46519422,98267.0,98257.0,0.2003472]
[1732363774243,1.46519422,98267.0,98258.0,0.05081183]
[1732363774244,1.44488322,98267.0,98258.0,0.05081183]
[1732363774461,1.44488322,98267.0,98258.0,0.20081183]
[1732363774688,1.44660342,98267.0,98258.0,0.20081183]
[1732363775379,1.40598142,98267.0,98258.0,0.08056773]
[1732363776058,1.38567042,98267.0,98258.0,0.08056773]
[1732363776278,1.30442642,98267.0,98258.0,0.08056773]
[1732363776497,1.28416542,98267.0,98258.0,0.08056773]
[1732363776736,1.28416542,98267.0,98259.0,0.02769677]
[1732363777177,1.28416542,98267.0,98260.0,0.05018331]
[1732363777663,0.18363152,98267.0,98260.0,0.05018331]
[1732363777876,0.0017202,98267.0,98259.0,0.05064268]
[1732363778105,0.0017202,98267.0,98261.0,0.00559154]
[1732363778337,0.0165562,98273.0,98262.0,0.05054549]
[1732363778601,2.1312899,98280.0,98262.0,0.0561368]
[1732363778602,0.023,98275.0,98262.0,0.0561368]
[1732363778835,0.023,98275.0,98263.0,0.19068137]
[1732363779767,0.023,98275.0,98264.0,0.05020933]
[1732363780458,0.7241232,98276.0,98264.0,0.05020933]
[1732363781174,0.0489,98275.0,98264.0,0.05020933]
[1732363781397,0.008278,98275.0,98264.0,0.05020933]
[1732363781839,0.7485682,98276.0,98264.0,0.05020933]
[1732363782523,0.7485682,98276.0,98264.0,0.08483118]
[1732363783212,0.39800706,98274.0,98264.0,0.08483118]
[1732363784132,0.2617,98275.0,98264.0,0.08483118]
[1732363784349,0.7485682,98276.0,98264.0,0.08483118]
[1732363784565,0.7282572,98276.0,98264.0,0.08483118]
[1732363784780,0.7282572,98276.0,98263.0,0.15]
[1732363784781,0.7079462,98276.0,98266.0,0.05047093]
[1732363785003,0.6308462,98276.0,98268.0,0.05074065]
[1732363785696,0.5902242,98276.0,98268.0,0.05074065]
[1732363785936,0.5699132,98276.0,98268.0,0.05074065]
[1732363786240,0.5292912,98276.0,98268.0,0.05074065]
[1732363786478,0.5107002,98276.0,98268.0,0.22793563]
[1732363786709,0.47978442,98276.0,98268.0,0.22793563]
[1732363786948,0.43916242,98276.0,98268.0,0.22793563]
[1732363787197,0.39854042,98276.0,98270.0,0.05079877]
[1732363788395,0.37822942,98276.0,98268.0,0.05074065]
[1732363788681,0.31389842,98276.0,98268.0,0.05074065]
[1732363789144,0.31389842,98276.0,98270.0,0.05079877]
[1732363791902,0.31389842,98276.0,98268.0,0.05074065]
[1732363792591,0.27327742,98276.0,98268.0,0.05074065]
[1732363792818,0.25296642,98276.0,98268.0,0.05074065]
[1732363793035,0.21234442,98276.0,98264.0,0.05020933]
[1732363793260,0.19203342,98276.0,98264.0,0.05020933]
[1732363793712,0.17172242,98276.0,98264.0,0.05020933]
[1732363793930,0.17172242,98276.0,98266.0,0.05033081]
[1732363793931,0.11079242,98276.0,98266.0,0.05033081]
[1732363794158,0.09048242,98276.0,98266.0,0.05033081]
[1732363794374,0.04986242,98276.0,98266.0,0.05033081]
[1732363794602,0.04986242,98276.0,98268.0,0.05023963]
[1732363794603,0.02955242,98276.0,98268.0,0.05023963]
[1732363795069,0.00924242,98276.0,98268.0,0.05023963]
[1732363795290,0.87693948,98279.0,98268.0,0.05023963]
[1732363795544,0.87693948,98279.0,98269.0,0.02524275]
[1732363795798,0.83631948,98279.0,98270.0,0.0507633]
[1732363796044,0.79569948,98279.0,98270.0,0.0507633]
[1732363796268,0.63500706,98279.0,98270.0,0.0507633]
[1732363798430,0.63500706,98279.0,98267.0,0.15]
[1732363798431,0.61469706,98279.0,98268.0,0.05023963]
[1732363798658,0.57057706,98279.0,98268.0,0.08137045]
[1732363798909,0.55198686,98279.0,98268.0,0.08137045]
[1732363799131,0.28467686,98279.0,98270.0,0.0507633]
[1732363799365,0.24405686,98279.0,98270.0,0.0507633]
[1732363799822,0.22374686,98279.0,98270.0,0.0507633]
[1732363800060,0.20343686,98279.0,98270.0,0.0507633]
[1732363800312,0.20343686,98279.0,98272.0,0.05053534]
[1732363800832,0.20343686,98279.0,98273.0,0.00557306]
[1732363801064,0.20343686,98279.0,98272.0,0.05053534]
[1732363801285,0.18312686,98279.0,98272.0,0.05053534]
[1732363801504,0.16281686,98279.0,98272.0,0.05053534]
[1732363801726,0.16281686,98279.0,98273.0,0.03302952]
[1732363801943,0.12219686,98279.0,98274.0,0.05013614]
[1732363802170,0.10188686,98279.0,98269.0,0.05020558]
[1732363802395,0.04095686,98279.0,98271.0,0.05048001]
[1732363802635,0.00033686,98279.0,98271.0,0.05048001]
[1732363803326,1.05140686,98280.0,98271.0,0.05048001]
[1732363803554,1.05140686,98280.0,98272.0,0.03894266]
[1732363803790,1.05140686,98280.0,98273.0,0.05060003]
[1732363804029,1.05140686,98280.0,98273.0,0.05617332]
[1732363804257,1.05140686,98280.0,98273.0,0.05060003]
[1732363804483,1.01078686,98280.0,98273.0,0.05060003]
[1732363804708,0.94985686,98280.0,98273.0,0.05060003]
[1732363804935,0.94985686,98280.0,98269.0,0.05020558]
[1732363805183,0.92954686,98280.0,98274.0,0.05013614]
[1732363805399,0.86861686,98280.0,98276.0,0.05013981]
[1732363805627,0.84830686,98280.0,98269.0,0.05020558]
[1732363805841,0.84830686,98280.0,98271.0,0.05048001]
[1732363806274,0.82799686,98280.0,98271.0,0.05048001]
[1732363806521,0.78737686,98280.0,98267.0,0.05040701]
[1732363806733,0.76706686,98280.0,98267.0,0.05040701]
[1732363806959,0.74675686,98280.0,98267.0,0.05040701]
[1732363807183,0.68582686,98280.0,98267.0,0.05040701]
[1732363807623,0.64520686,98280.0,98267.0,0.05040701]
[1732363808301,0.60458686,98280.0,98267.0,0.05040701]
[1732363808524,0.58427686,98280.0,98268.0,0.01221954]
[1732363808967,0.54365686,98280.0,98269.0,0.05019008]
[1732363809887,0.48272686,98280.0,98269.0,0.05019008]
[1732363810107,0.48272686,98280.0,98268.0,0.16221954]
[1732363810108,0.42179686,98280.0,98271.0,0.05018375]
[1732363810561,0.42179686,98280.0,98267.0,0.05067167]
[1732363810813,0.42179686,98280.0,98268.0,0.031916]
[1732363811010,0.40148686,98280.0,98267.0,0.05067167]
[1732363811230,0.32024686,98280.0,98269.0,0.00557699]
[1732363811455,0.32024686,98280.0,98265.0,0.0705092]
[1732363811456,0.27962686,98280.0,98270.0,0.0504974]
[1732363811676,0.27962686,98280.0,98268.0,0.0507078]
[1732363812130,0.25931686,98280.0,98266.0,0.05080573]
[1732363812367,0.19838686,98280.0,98266.0,0.05080573]
[1732363812602,0.17812686,98280.0,98266.0,0.05080573]
[1732363812827,0.15781686,98280.0,98267.0,0.0008599]
[1732363813049,0.15781686,98280.0,98267.0,0.01845816]
[1732363813286,0.13922666,98280.0,98268.0,0.0507078]
[1732363813727,0.09860666,98280.0,98268.0,0.0507078]
[1732363813968,0.09860666,98280.0,98269.0,0.01396752]
[1732363814209,0.09860666,98280.0,98270.0,0.0504974]
[1732363814210,0.03767666,98280.0,98270.0,0.0504974]
[1732363814699,0.05005666,98281.0,98270.0,0.0504974]
[1732363814935,0.05005666,98281.0,98271.0,0.0135834]
[1732363815160,0.02974666,98281.0,98272.0,0.05029606]
[1732363815378,1.14041656,98282.0,98272.0,0.05029606]
[1732363815612,1.09979656,98282.0,98270.0,0.0504974]
[1732363815833,1.09979656,98282.0,98270.0,0.05665014]
[1732363817711,0.0488,98281.0,98270.0,0.0504974]
[1732363818489,0.00818,98281.0,98270.0,0.0504974]
[1732363818739,1.08766656,98282.0,98270.0,0.0504974]
[1732363818966,1.06735656,98282.0,98270.0,0.0504974]
[1732363819184,1.06735656,98282.0,98270.0,0.06169988]
[1732363819900,1.06735656,98282.0,98270.0,0.0504974]
[1732363820146,0.43369,98284.0,98268.0,0.0507078]
[1732363820397,0.43369,98284.0,98270.0,0.0504974]
[1732363820623,1.4529799,98284.0,98270.0,0.0504974]
[1732363821522,1.4529799,98284.0,98268.0,0.0507078]
[1732363824754,0.03166005,98283.0,98268.0,0.0507078]
[1732363824958,0.03166005,98283.0,98269.0,0.01774677]
[1732363825193,0.42473105,98284.0,98274.0,0.05010037]
[1732363825409,0.247,98284.0,98275.0,0.05028677]
[1732363825609,0.09145123,98287.0,98277.0,0.05090821]
[1732363825809,0.18232478,98297.0,98274.0,0.03945463]
[1732363825810,0.22790598,98307.0,98279.0,0.05019272]
[1732363826070,0.053,98291.0,98279.0,0.05019272]
[1732363826242,0.77882426,98298.0,98276.0,0.05045306]
[1732363826524,0.0017198,98284.0,98281.0,0.05091719]
[1732363826732,0.0017198,98284.0,98277.0,0.05005036]
[1732363826868,0.10016136,98299.0,98282.0,0.00557714]
[1732363827073,0.00289949,98298.0,98279.0,0.05057294]
[1732363827255,0.04960311,98291.0,98279.0,0.05057294]
[1732363827458,0.05466768,98300.0,98279.0,0.05057294]
[1732363827677,0.05466768,98300.0,98281.0,0.05044037]
[1732363828115,0.12069923,98303.0,98283.0,0.05042917]
[1732363828334,0.05466768,98300.0,98281.0,0.05044037]
[1732363828545,0.05466768,98300.0,98281.0,0.06165695]
[1732363828753,0.10532001,98299.0,98282.0,0.00558081]
[1732363828953,0.05466768,98300.0,98282.0,0.00558081]
[1732363828954,0.05466768,98300.0,98283.0,0.05042917]
[1732363829177,0.05466768,98300.0,98285.0,0.05099095]
[1732363829373,0.05466768,98300.0,98286.0,0.00557132]
[1732363829633,0.05466768,98300.0,98283.0,0.05042917]
[1732363831020,0.254,98295.0,98283.0,0.05042917]
[1732363831239,1.2732899,98295.0,98284.0,0.01066458]
[1732363832516,1.2732899,98295.0,98285.0,0.05099095]
[1732363833165,1.32795758,98295.0,98283.0,0.05042917]
[1732363834263,1.2732899,98295.0,98283.0,0.05042917]
[1732363838731,1.2750097,98295.0,98283.0,0.05042917]
[1732363839211,0.03147653,98294.0,98283.0,0.05042917]
[1732363842691,0.247,98293.0,98283.0,0.05042917]
[1732363843143,0.03147653,98292.0,98283.0,0.05094212]
[1732363843589,0.03147653,98292.0,98283.0,0.06854633]
[1732363846377,0.00232295,98292.0,98283.0,0.05094212]
[1732363850759,0.247,98293.0,98283.0,0.05094212]
[1732363851178,0.03149399,98292.0,98283.0,0.05094212]
[1732363851600,0.247,98293.0,98283.0,0.05094212]
[1732363851815,0.03149372,98292.0,98283.0,0.05094212]
[1732363852672,0.03149372,98292.0,98283.0,0.05180192]
[1732363854248,0.01899774,98291.0,98283.0,0.05180192]
[1732363854466,0.01899774,98290.0,98283.0,0.05180192]
[1732363854677,0.01899774,98289.0,98283.0,0.05180192]
[1732363855106,0.01899774,98288.0,98283.0,0.05180192]
[1732363855360,0.01899774,98287.0,98283.0,0.05180192]
[1732363855579,0.01899774,98286.0,98283.0,0.05180192]
[1732363855806,0.01899774,98285.0,98283.0,0.05180192]
[1732363856036,0.247,98293.0,98270.0,0.05552758]
[1732363856037,0.01899774,98284.0,98271.0,0.0509714]
[1732363856255,0.01899774,98283.0,98271.0,0.08579048]
[1732363856471,0.247,98293.0,98273.0,0.0503297]
[1732363856472,0.01899774,98282.0,98273.0,0.0503297]
[1732363856699,0.01899774,98281.0,98274.0,0.03246492]
[1732363856902,0.01899774,98280.0,98275.0,0.05084014]
[1732363857145,0.01899774,98279.0,98275.0,0.05084014]
[1732363857364,0.01899774,98278.0,98275.0,0.08241612]
[1732363857575,0.01899774,98277.0,98275.0,0.08241612]
[1732363857782,0.01899774,98276.0,98275.0,0.05084014]
[1732363857997,0.01899774,98276.0,98271.0,0.05064453]
[1732363858204,0.01899774,98275.0,98271.0,0.05064453]
[1732363858409,0.01899774,98274.0,98271.0,0.05064453]
[1732363858614,0.01899774,98273.0,98271.0,0.05064453]
[1732363858799,0.247,98293.0,98272.0,0.03526607]
[1732363859020,0.247,98293.0,98274.0,0.0462]
[1732363859262,0.01899847,98292.0,98274.0,0.0462]
[1732363859467,0.01899847,98291.0,98274.0,0.0462]
[1732363859680,0.247,98293.0,98274.0,0.0462]
[1732363859681,0.01899847,98290.0,98274.0,0.03902575]
[1732363859890,0.01899847,98289.0,98275.0,0.0462]
[1732363860099,0.01899801,98289.0,98276.0,0.05004243]
[1732363861159,0.01899801,98288.0,98276.0,0.05004243]
[1732363861427,0.247,98293.0,98276.0,0.05004243]
[1732363861707,0.01899795,98292.0,98276.0,0.08921196]
[1732363861923,0.01899795,98291.0,98278.0,0.05089091]
[1732363862169,0.01899795,98290.0,98278.0,0.05089091]
[1732363862409,0.247,98293.0,98278.0,0.05089091]
[1732363862666,0.01899765,98289.0,98278.0,0.05089091]
[1732363863326,0.01899765,98289.0,98278.0,0.06879]
[1732363863541,0.01899765,98289.0,98279.0,0.0486]
[1732363863789,0.01899765,98289.0,98280.0,0.05079693]
[1732363864253,0.01899765,98289.0,98281.0,0.0486]
[1732363864504,0.247,98293.0,98281.0,0.0486]
[1732363864505,0.01899698,98288.0,98281.0,0.0486]
[1732363864707,0.01899698,98287.0,98282.0,0.05053475]
[1732363864934,0.01899698,98286.0,98282.0,0.05053475]
[1732363865156,0.01899698,98285.0,98282.0,0.05053475]
[1732363865391,0.04939201,98284.0,98282.0,0.05053475]
[1732363865630,0.247,98293.0,98282.0,0.05053475]
[1732363865631,0.04939201,98283.0,98282.0,0.05053475]
[1732363866277,0.01899698,98283.0,98282.0,0.05053475]
[1732363866765,0.01899698,98283.0,98271.0,0.05064453]
[1732363867021,0.01899698,98282.0,98271.0,0.05064453]
[1732363867258,0.01899698,98281.0,98271.0,0.05064453]
[1732363867508,0.01899698,98280.0,98271.0,0.10909582]
[1732363867718,0.01899698,98279.0,98271.0,0.10909582]
[1732363867942,0.01899698,98278.0,98271.0,0.05064453]
[1732363868161,0.01899698,98277.0,98272.0,0.02564106]
[1732363868395,0.04939147,98276.0,98273.0,0.05056439]
[1732363868668,0.025,98283.0,98275.0,0.05080729]
[1732363868878,0.04939105,98282.0,98275.0,0.05080729]
[1732363869087,0.04939105,98281.0,98273.0,0.05056439]
[1732363869359,0.04939105,98280.0,98274.0,0.02273038]
[1732363869576,0.01759619,98280.0,98275.0,0.05080729]
[1732363869801,0.025,98283.0,98275.0,0.12184975]
[1732363870425,0.025,98283.0,98275.0,0.09690729]
[1732363871735,0.025,98283.0,98271.0,0.0509714]
[1732363871960,0.025,98283.0,98270.0,0.05051402]
[1732363872203,0.025,98283.0,98272.0,0.05004223]
[1732363876318,0.025,98283.0,98271.0,0.05093666]
[1732363881200,1.0442899,98283.0,98271.0,0.05093666]
[1732363881460,1.0442899,98283.0,98272.0,0.05566657]
[1732363881699,0.0652988,98292.0,98276.0,0.09092298]
[1732363881937,0.0652988,98292.0,98277.0,0.0459]
[1732363882212,1.0762817,98292.0,98279.0,0.05090116]
[1732363883367,1.0192899,98292.0,98279.0,0.05090116]
[1732363883616,0.247,98293.0,98279.0,0.13330116]
[1732363883844,1.2459829,98293.0,98280.0,0.02975488]
[1732363884168,1.0192899,98293.0,98281.0,0.05063542]
[1732363885090,0.0017198,98295.0,98281.0,0.05063542]
[1732363885310,0.0017198,98295.0,98281.0,0.08059503]
[1732363885548,1.0210097,98295.0,98281.0,0.08059503]
[1732363885785,0.0462,98297.0,98281.0,0.08059503]
[1732363886010,1.0654899,98297.0,98281.0,0.08059503]
[1732363887102,1.0654899,98297.0,98281.0,0.05063542]
[1732363887302,1.0654899,98297.0,98280.0,0.05052852]
[1732363889064,1.02061246,98297.0,98280.0,0.05052852]
[1732363889268,0.4295,98297.0,98281.0,0.0459]
[1732363889484,1.0192899,98297.0,98283.0,0.0506632]
[1732363889693,0.0798196,98300.0,98283.0,0.0506632]
[1732363889904,0.03164946,98299.0,98283.0,0.0506632]
[1732363890099,0.03164946,98299.0,98284.0,0.0459]
[1732363890316,1.0991095,98300.0,98284.0,0.0459]
[1732363890746,1.0991095,98300.0,98285.0,0.05019055]
[1732363891438,0.03164921,98299.0,98285.0,0.05019055]
[1732363892496,0.0017208,98297.0,98285.0,0.05019055]
[1732363892720,0.0017208,98297.0,98286.0,0.01981752]
[1732363893609,0.03164937,98296.0,98286.0,0.01981752]
[1732363894330,0.03164937,98296.0,98287.0,0.05094906]
[1732363894531,0.0017208,98297.0,98287.0,0.05094906]
[1732363895183,0.03164961,98296.0,98287.0,0.05094906]
[1732363895387,0.03164961,98296.0,98288.0,0.01166666]
[1732363895555,0.03164961,98296.0,98289.0,0.05090345]
[1732363897188,0.36096577,98297.0,98289.0,0.05090345]
[1732363897401,0.0017196,98300.0,98291.0,0.05086715]
[1732363902116,1.0210095,98300.0,98292.0,0.0469]
[1732363902322,1.0210095,98300.0,98293.0,0.05012582]
[1732363906127,1.00517953,98300.0,98293.0,0.05012582]
[1732363906327,0.5961,98309.0,98293.0,0.0680684]
[1732363906597,1.0292899,98308.0,98293.0,0.0680684]
[1732363907745,0.395,98307.0,98293.0,0.0680684]
[1732363909714,0.395,98307.0,98294.0,0.05078559]
[1732363910095,0.395,98307.0,98293.0,0.05047879]
[1732363910522,0.01896937,98306.0,98294.0,0.01797788]
[1732363910736,0.395,98307.0,98294.0,0.01797788]
[1732363910955,0.01896937,98306.0,98294.0,0.01797788]
[1732363911166,0.01896937,98306.0,98295.0,0.0505672]
[1732363911364,0.01896937,98306.0,98297.0,0.05075279]
[1732363911587,0.00656163,98305.0,98297.0,0.05075279]
[1732363911800,0.395,98307.0,98297.0,0.05075279]
[1732363911995,0.38428259,98307.0,98297.0,0.05075279]
[1732363912604,0.38428259,98307.0,98298.0,0.01271752]
[1732363913018,0.00101739,98306.0,98281.0,0.20024576]
[1732363913382,0.00101739,98306.0,98283.0,0.05006674]
[1732363913586,0.00101739,98306.0,98283.0,0.0510841]
[1732363914469,0.38029998,98307.0,98283.0,0.0510841]
[1732363914683,0.38029998,98307.0,98284.0,0.02797256]
[1732363914903,0.38029998,98307.0,98285.0,0.05046917]
[1732363915315,0.38029998,98307.0,98284.0,0.05035739]
[1732363915538,0.37263822,98307.0,98284.0,0.05035739]
[1732363915760,0.36931533,98307.0,98284.0,0.05035739]
[1732363915973,0.36931533,98307.0,98285.0,0.02800163]
[1732363916183,0.36931533,98307.0,98286.0,0.0476]
[1732363916398,0.36931533,98307.0,98287.0,0.05036661]
[1732363917217,0.36621533,98307.0,98287.0,0.05036661]
[1732363919463,0.023,98306.0,98287.0,0.05036661]
[1732363919669,0.023,98306.0,98288.0,0.03673292]
[1732363921412,0.023,98306.0,98289.0,0.05027893]
[1732363922887,0.023,98306.0,98290.0,0.0491]
[1732363923800,0.01898009,98305.0,98290.0,0.0491]
[1732363923992,0.01898009,98304.0,98291.0,0.050624]
[1732363924201,0.01898009,98303.0,98291.0,0.050624]
[1732363924411,0.01898009,98302.0,98291.0,0.050624]
[1732363924629,0.01898009,98301.0,98291.0,0.050624]
[1732363924847,0.01898009,98300.0,98291.0,0.050624]
[1732363925051,0.01898009,98299.0,98291.0,0.07457986]
[1732363925232,0.01898009,98298.0,98291.0,0.07457986]
[1732363925479,0.01898009,98297.0,98291.0,0.07457986]
[1732363925683,1.0192899,98298.0,98291.0,0.07457986]
[1732363925684,0.01898009,98296.0,98291.0,0.07457986]
[1732363925914,0.01347939,98295.0,98292.0,0.02459647]
[1732363926139,1.0192899,98298.0,98293.0,0.05058727]
[1732363926366,1.0192899,98298.0,98294.0,0.01610167]
[1732363927292,1.0192899,98298.0,98295.0,0.05001725]
[1732363927525,0.023,98306.0,98295.0,0.05001725]
[1732363927741,1.0422899,98306.0,98295.0,0.05001725]
[1732363930288,1.0422899,98306.0,98289.0,0.03395022]
[1732363930493,1.0422899,98306.0,98286.0,0.05067911]
[1732363930700,1.0422899,98306.0,98284.0,0.05062416]
[1732363931327,1.0422899,98306.0,98289.0,0.0008601]
[1732363931533,1.0422899,98306.0,98290.0,0.02033617]
[1732363931740,0.023,98304.0,98290.0,0.02033617]
[1732363932362,0.023,98304.0,98291.0,0.05092185]
[1732363932581,0.023,98302.0,98291.0,0.05092185]
[1732363933045,0.023,98302.0,98290.0,0.05042355]
[1732363934116,0.00109661,98293.0,98290.0,0.05042355]
[1732363935886,0.03039999,98292.0,98290.0,0.05042355]
[1732363936094,0.03039999,98291.0,98290.0,0.05042355]
[1732363937047,0.00098445,98293.0,98290.0,0.06035966]
[1732363937216,0.023,98302.0,98290.0,0.06035966]
[1732363937656,1.0422899,98302.0,98290.0,0.06035966]
[1732363937883,1.0422899,98302.0,98291.0,0.01074198]
[1732363938114,0.01900094,98301.0,98291.0,0.01074198]
[1732363938342,0.01900094,98300.0,98291.0,0.01074198]
[1732363938564,0.01900094,98299.0,98291.0,0.01074198]
[1732363938792,0.01900094,98298.0,98292.0,0.01082256]
[1732363939012,0.01900094,98297.0,98293.0,0.01083062]
[1732363939244,0.01900094,98296.0,98293.0,0.01083062]
[1732363939516,1.0422899,98302.0,98294.0,0.01083143]
[1732363939765,1.0422899,98302.0,98295.0,0.0502928]
[1732363940004,1.0422899,98302.0,98289.0,0.0008601]
[1732363940005,1.0422899,98302.0,98290.0,0.05042355]
[1732363940262,1.0192899,98302.0,98290.0,0.05042355]
[1732363942397,1.0192899,98302.0,98290.0,0.14124559]
[1732363942895,0.0071,98314.0,98301.0,0.14171958]
[1732363942896,0.0931202,98308.0,98301.0,0.14171958]
[1732363943121,0.0017202,98307.0,98300.0,0.05069883]
[1732363943382,0.0017202,98307.0,98300.0,0.14156823]
[1732363943600,0.0017202,98307.0,98301.0,0.04590967]
[1732363943830,0.0017202,98307.0,98300.0,0.05069883]
[1732363944284,0.0017202,98307.0,98298.0,0.24919265]
[1732363944511,0.0017202,98307.0,98299.0,0.0908694]
[1732363944818,0.0017202,98307.0,98300.0,0.0983134]
[1732363945027,0.0017202,98307.0,98300.0,0.05069883]
[1732363945694,0.023,98313.0,98299.0,0.05045061]
[1732363945920,0.023,98313.0,98301.0,0.00450487]
[1732363946112,0.023,98313.0,98302.0,0.05083312]
[1732363946352,0.023,98313.0,98302.0,0.05531992]
[1732363947401,0.023,98313.0,98299.0,0.05045061]
[1732363947608,0.0451,98312.0,98299.0,0.05045061]
[1732363947825,0.023,98311.0,98291.0,0.05063591]
[1732363948083,1.0422899,98311.0,98291.0,0.08823927]
[1732363948792,1.0422899,98311.0,98291.0,0.1790705]
[1732363949023,1.0422899,98311.0,98292.0,0.02284893]
[1732363949253,0.254,98308.0,98292.0,0.02284893]
[1732363949932,0.254,98308.0,98292.0,0.11368016]
[1732363950140,0.254,98308.0,98292.0,0.02284893]
[1732363950346,0.254,98308.0,98293.0,0.05058625]
[1732363950559,0.254,98308.0,98294.0,0.03760336]
[1732363951195,0.254,98308.0,98295.0,0.05081714]
[1732363951410,0.01897716,98307.0,98295.0,0.05081714]
[1732363951639,0.01897716,98306.0,98295.0,0.05081714]
[1732363951855,0.254,98308.0,98290.0,0.05552788]
[1732363951856,0.01897716,98305.0,98297.0,0.05064954]
[1732363952067,0.01897716,98304.0,98297.0,0.05064954]
[1732363952359,0.01897716,98303.0,98297.0,0.05064954]
[1732363952591,0.01897716,98302.0,98294.0,0.0509796]
[1732363952802,0.01897716,98301.0,98294.0,0.0509796]
[1732363953007,0.01897716,98300.0,98295.0,0.04589457]
[1732363953221,0.01897716,98299.0,98295.0,0.04589457]
[1732363953432,0.01897716,98298.0,98296.0,0.0501515]
[1732363953653,0.01897716,98297.0,98296.0,0.06470922]
[1732363956076,0.0451,98305.0,98296.0,0.06470922]
[1732363956273,0.01897612,98304.0,98296.0,0.06470922]
[1732363956503,0.0451,98305.0,98296.0,0.06470922]
[1732363956504,0.01897612,98303.0,98296.0,0.06470922]
[1732363956671,0.0451,98305.0,98298.0,0.05098673]
[1732363956878,0.04210863,98305.0,98298.0,0.05098673]
[1732363969150,0.04210863,98305.0,98300.0,0.05001453]
[1732363969349,0.04210863,98305.0,98302.0,0.20055441]
[1732363969558,1.0192899,98311.0,98302.0,0.20055441]
[1732363969981,0.1435,98317.0,98302.0,0.20055441]
[1732363970188,0.023,98313.0,98302.0,0.20055441]
[1732363970395,0.08619727,98317.0,98304.0,0.0502565]
[1732363970607,0.254,98318.0,98304.0,0.2002565]
[1732363970850,0.254,98318.0,98306.0,0.05026436]
[1732363971062,0.254,98318.0,98299.0,0.05032446]
[1732363971280,1.2732899,98318.0,98299.0,0.05032446]
[1732363971521,1.2732899,98318.0,98304.0,0.15]
[1732363971748,1.2732899,98318.0,98306.0,0.05026436]
[1732363972576,0.0475,98317.0,98306.0,0.05026436]
[1732363973017,1.2732899,98318.0,98310.0,0.15]
[1732363973220,1.2732899,98318.0,98311.0,0.05037683]
[1732363973438,0.0807,98317.0,98311.0,0.05037683]
[1732363973660,0.0807,98317.0,98300.0,0.05001453]
[1732363973885,1.2732899,98318.0,98301.0,0.00996347]
[1732363974115,1.2732899,98318.0,98302.0,0.05055441]
[1732363974338,0.237,98317.0,98302.0,0.05055441]
[1732363974762,1.2686899,98318.0,98302.0,0.05055441]
[1732363974967,1.2686899,98318.0,98304.0,0.0502565]
[1732363976095,0.0475,98317.0,98304.0,0.0502565]
[1732363976532,1.2686899,98318.0,98304.0,0.0502565]
[1732363976983,1.2686899,98318.0,98305.0,0.0479]
[1732363977187,1.2686899,98318.0,98306.0,0.02456102]
[1732363977805,1.2686899,98318.0,98307.0,0.05032428]
[1732363979690,1.26418469,98318.0,98306.0,0.05026436]
[1732363979861,1.26418469,98318.0,98308.0,0.05035831]
[1732363984058,1.26590489,98318.0,98308.0,0.05035831]
[1732363984275,0.023,98317.0,98308.0,0.05035831]
[1732363984653,1.26590489,98318.0,98306.0,0.05026436]
[1732363984879,1.26062695,98318.0,98308.0,0.05020173]
[1732363985089,0.24133705,98318.0,98306.0,0.05053006]
[1732363985297,0.24133705,98318.0,98302.0,0.05033562]
[1732363986794,0.24133705,98318.0,98302.0,0.20033562]
[1732363987019,0.24133705,98318.0,98304.0,0.20043164]
[1732363987875,0.24133705,98318.0,98305.0,0.0456]
[1732363988076,0.24133705,98318.0,98306.0,0.05053006]
[1732363988283,0.24133705,98318.0,98306.0,0.20053006]
[1732363988848,0.24133705,98318.0,98306.0,0.05053006]
[1732363990376,0.24133705,98318.0,98304.0,0.0505957]
[1732363991179,0.24133705,98318.0,98304.0,0.2005957]
[1732363991406,1.26062695,98318.0,98304.0,0.2005957]
[1732363991606,1.26062695,98318.0,98305.0,0.03330235]
[1732363991832,1.26062695,98318.0,98306.0,0.05009543]
[1732363996213,1.26062695,98318.0,98306.0,0.00172]
[1732363996413,1.26062695,98318.0,98307.0,0.05057471]
[1732363998222,1.26062695,98318.0,98308.0,0.15]
[1732363998432,1.26062695,98318.0,98309.0,0.05085794]
[1732364003716,1.24032495,98318.0,98309.0,0.05085794]
[1732364005017,1.24032495,98318.0,98310.0,0.02951259]
[1732364005449,1.22007295,98318.0,98311.0,0.05026458]
[1732364005932,1.22007295,98318.0,98309.0,0.05085794]
[1732364010597,1.2166987,98318.0,98309.0,0.05085794]
[1732364011582,1.20933759,98318.0,98309.0,0.05085794]
[1732364011843,1.20933759,98318.0,98311.0,0.05026458]
[1732364012788,1.20933759,98318.0,98308.0,0.15]
[1732364012789,1.19956627,98318.0,98309.0,0.05085794]
[1732364013030,1.19956627,98318.0,98310.0,0.15]